fUSD/lending_fUSD_20250208
["ID","MTS","AMOUNT","RATE_DAILY","PERIOD"]
[352234038,1739013052711,-1530.98,0.00011132,2]
[352234039,1739013052721,-2112.49,0.00011132,2]
[352234040,1739013052730,-5023.57,0.00011132,2]
[352234041,1739013052739,-4357.4,0.00011132,2]
[352234042,1739013052749,-500.0,0.00011132,2]
[352234043,1739013052758,-3534.9,0.00011132,2]
[352234044,1739013052767,-3593.71,0.00011132,2]
[352234045,1739013052776,-1030.68,0.00011132,2]
[352234046,1739013052786,-1465.28,0.00011132,2]
[352234047,1739013052796,-2712.71,0.00011132,2]
[352234048,1739013052805,-3901.85,0.00011132,2]
[352234049,1739013052814,-5908.12,0.00011132,2]
[352234050,1739013052823,-5342.84,0.00011132,2]
[352234051,1739013052832,-2391.85,0.00011132,2]
[352234052,1739013052842,-2076.57,0.00011132,2]
[352234053,1739013052851,-500.0,0.00011132,2]
[352234054,1739013052860,-5698.13,0.00011132,2]
[352234055,1739013052870,-2309.9,0.00011132,2]
[352234056,1739013052879,-2212.02,0.00011132,2]
[352234057,1739013052888,-500.0,0.00011132,2]
[352234058,1739013052897,-755.52,0.00011132,2]
[352234059,1739013052906,-1450.19,0.00011132,2]
[352234060,1739013052916,-755.35,0.00011132,2]
[352234061,1739013052925,-1681.08,0.00011132,2]
[352234062,1739013052935,-1214.99,0.00011132,2]
[352234063,1739013052944,-500.0,0.00011132,2]
[352234064,1739013052954,-623.04,0.00011132,2]
[352234065,1739013052963,-2156.18,0.00011132,2]
[352234066,1739013052973,-5375.13,0.00011132,2]
[352234067,1739013052983,-1130.4,0.00011132,2]
[352234068,1739013052993,-2448.76,0.00011132,2]
[352234069,1739013053003,-500.0,0.00011132,2]
[352234070,1739013053012,-1595.13,0.00011132,2]
[352234071,1739013053022,-500.0,0.00011133,2]
[352234072,1739013053031,-500.0,0.00011133,2]
[352234073,1739013053040,-500.0,0.00011133,2]
[352234074,1739013053050,-500.0,0.00011133,2]
[352234075,1739013053059,-504.66945719,0.00011133,2]
[352234076,1739013053068,-503.90278654,0.00011133,2]
[352234077,1739013053077,-647.25,0.00011133,2]
[352234078,1739013053086,-501.86169803,0.00011133,2]
[352234079,1739013053095,-504.75001445,0.00011133,2]
[352234080,1739013053105,-500.0,0.00011133,2]
[352234081,1739013053114,-500.0,0.00011133,2]
[352234082,1739013053123,-500.0,0.00011133,2]
[352234083,1739013053133,-500.0,0.00011133,2]
[352234084,1739013053142,-500.0,0.00011133,2]
[352234085,1739013053151,-510.2,0.00011133,2]
[352234086,1739013053161,-500.0,0.00011133,2]
[352234087,1739013053170,-500.0,0.00011133,2]
[352234088,1739013053179,-500.0,0.00011133,2]
[352234089,1739013053189,-500.0,0.00011133,2]
[352234090,1739013053198,-500.0,0.00011133,2]
[352234091,1739013053208,-500.0,0.00011133,2]
[352234092,1739013053217,-2124.11,0.00011133,2]
[352234093,1739013053227,-500.0,0.00011133,2]
[352234094,1739013053236,-5893.56,0.00011133,2]
[352234095,1739013053244,-3358.801698,0.00011133,2]
[352234096,1739013053254,-1726.29,0.00011133,2]
[352234097,1739013053264,-2160.36,0.00011133,2]
[352234098,1739013053273,-576.21,0.00011133,2]
[352234099,1739013053282,-1327.73,0.00011133,2]
[352234100,1739013053292,-3645.58,0.00011133,2]
[352234101,1739013053301,-3378.237504,0.00011133,2]
[352234102,1739013053310,-152.091761,0.00011133,2]
[352234103,1739013053319,-774.41,0.00011133,2]
[352234104,1739013053328,-2948.09,0.00011133,2]
[352234105,1739013053338,-2267.8,0.00011133,2]
[352234106,1739013053350,-1001.04,0.00011133,2]
[352234107,1739013053359,-500.0,0.00011133,2]
[352234108,1739013053368,-1847.11,0.00011133,2]
[352234109,1739013053377,-500.0,0.00011133,2]
[352234110,1739013053387,-500.0,0.00011133,2]
[352234111,1739013053397,-1735.24,0.00011133,2]
[352234112,1739013053406,-1678.32,0.00011133,2]
[352234113,1739013053416,-500.0,0.00011133,2]
[352234114,1739013053426,-3512.39,0.00011133,2]
[352234115,1739013053435,-3805.67,0.00011133,2]
[352234116,1739013053445,-161.02241486,0.00011133,2]
[352234117,1739013053454,-2607.62,0.00011133,2]
[352234118,1739013053463,-500.0,0.00011133,2]
[352234119,1739013053472,-3258.61,0.00011133,2]
[352234120,1739013053482,-4739.99,0.00011133,2]
[352234121,1739013053492,-12222.98,0.00011133,2]
[352234122,1739013053501,-3871.33,0.00011133,2]
[352234123,1739013053511,-5557.03,0.00011133,2]
[352234124,1739013053520,-500.0,0.00011133,2]
[352234125,1739013053531,-500.0,0.00011133,2]
[352234126,1739013053540,-8192.71,0.00011133,2]
[352234127,1739013053550,-2796.47,0.00011133,2]
[352234128,1739013053559,-538.39,0.00011133,2]
[352234129,1739013053569,-555.96,0.00011133,2]
[352234130,1739013053578,-1656.22,0.00011133,2]
[352234131,1739013053587,-5463.22,0.00011133,2]
[352234132,1739013053597,-502.29722002,0.00011133,2]
[352234133,1739013053607,-4928.16,0.00011133,2]
[352234134,1739013053616,-4249.23,0.00011133,2]
[352234135,1739013053625,-500.0,0.00011133,2]
[352234136,1739013053634,-500.0,0.00011133,2]
[352234137,1739013053644,-500.0,0.00011133,2]
[352234138,1739013053653,-500.0,0.00011134,2]
[352234139,1739013053662,-500.0,0.00011134,2]
[352234140,1739013053671,-504.39336367,0.00011134,2]
[352234141,1739013053680,-500.0,0.00011134,2]
[352234142,1739013053689,-500.0,0.00011134,2]
[352234143,1739013053699,-500.0,0.00011134,2]
[352234144,1739013053708,-221.18889842,0.00011134,2]
[352234145,1739013053717,-500.0,0.00011134,2]
[352234146,1739013053727,-787.27,0.00011134,2]
[352234147,1739013053735,-500.0,0.00011134,2]
[352234148,1739013053745,-501.73994574,0.00011134,2]
[352234149,1739013053754,-500.0,0.00011134,2]
[352234150,1739013053763,-521.98112458,0.00011134,2]
[352234151,1739013053773,-500.0,0.00011134,2]
[352234152,1739013053782,-312.43969346,0.00011134,2]
[352234153,1739013053791,-500.0,0.00011134,2]
[352234154,1739013053800,-500.0,0.00011134,2]
[352234155,1739013053810,-500.0,0.00011134,2]
[352234156,1739013053819,-500.0,0.00011134,2]
[352234157,1739013053828,-500.0,0.00011134,2]
[352234158,1739013053837,-500.0,0.00011134,2]
[352234159,1739013053847,-500.0,0.00011134,2]
[352234160,1739013053856,-500.0,0.00011134,2]
[352234161,1739013053865,-500.0,0.00011134,2]
[352234162,1739013053875,-517.87,0.00011134,2]
[352234163,1739013053885,-286.13605615,0.00011134,2]
[352234164,1739013053894,-500.0,0.00011134,2]
[352234165,1739013053904,-500.0,0.00011134,2]
[352234166,1739013053914,-500.0,0.00011134,2]
[352234167,1739013053923,-500.0,0.00011134,2]
[352234168,1739013053932,-625.34086442,0.00011134,2]
[352234169,1739013053941,-500.0,0.00011134,2]
[352234170,1739013053950,-506.82983127,0.00011134,2]
[352234171,1739013053960,-500.0,0.00011134,2]
[352234172,1739013053970,-500.0,0.00011134,2]
[352234173,1739013053979,-500.0,0.00011134,2]
[352234174,1739013053989,-500.0,0.00011134,2]
[352234175,1739013053998,-500.0,0.00011134,2]
[352234176,1739013054008,-500.0,0.00011134,2]
[352234177,1739013054017,-661.99,0.00011134,2]
[352234178,1739013054027,-500.0,0.00011134,2]
[352234179,1739013054037,-500.0,0.00011134,2]
[352234180,1739013054046,-500.0,0.00011134,2]
[352234181,1739013054055,-500.0,0.00011134,2]
[352234182,1739013054064,-502.18312941,0.00011134,2]
[352234183,1739013054076,-821.02,0.00011134,2]
[352234184,1739013054086,-500.0,0.00011134,2]
[352234185,1739013054095,-502.27964358,0.00011134,2]
[352234186,1739013054105,-500.0,0.00011134,2]
[352234187,1739013054114,-1772.05,0.00011134,2]
[352234188,1739013054123,-500.0,0.00011134,2]
[352234189,1739013054133,-500.0,0.00011134,2]
[352234190,1739013054142,-312.79213971,0.00011134,2]
[352234191,1739013054151,-500.0,0.00011134,2]
[352234192,1739013054161,-500.0,0.00011134,2]
[352234193,1739013054171,-964.41,0.00011134,2]
[352234194,1739013054181,-896.8,0.00011134,2]
[352234195,1739013054190,-462.93075962,0.00011134,2]
[352234196,1739013054199,-500.0,0.00011134,2]
[352234197,1739013054208,-500.0,0.00011134,2]
[352234198,1739013054218,-578.91249032,0.00011134,2]
[352234199,1739013054227,-500.0,0.00011134,2]
[352234200,1739013054238,-2054.77,0.00011134,2]
[352234201,1739013054247,-500.0,0.00011134,2]
[352234202,1739013054258,-500.0,0.00011134,2]
[352234203,1739013054268,-500.0,0.00011134,2]
[352234204,1739013054278,-500.0,0.00011134,2]
[352234205,1739013054288,-500.0,0.00011134,2]
[352234206,1739013054298,-500.0,0.00011134,2]
[352234207,1739013054308,-500.0,0.00011134,2]
[352234208,1739013054318,-500.0,0.00011134,2]
[352234209,1739013054327,-1316.88,0.00011134,2]
[352234210,1739013054337,-500.0,0.00011134,2]
[352234211,1739013054350,-500.0,0.00011134,2]
[352234212,1739013054360,-500.0,0.00011134,2]
[352234213,1739013054370,-500.0,0.00011134,2]
[352234214,1739013054380,-500.0,0.00011134,2]
[352234215,1739013054391,-2052.96,0.00011134,2]
[352234216,1739013054401,-500.0,0.00011134,2]
[352234217,1739013054410,-500.0,0.00011134,2]
[352234218,1739013054421,-500.0,0.00011134,2]
[352234219,1739013054431,-500.0,0.00011134,2]
[352234220,1739013054442,-500.0,0.00011134,2]
[352234221,1739013054452,-500.0,0.00011134,2]
[352234222,1739013054463,-811.38,0.00011134,2]
[352234223,1739013054473,-162.99054872,0.00011134,2]
[352234224,1739013054483,-500.0,0.00011134,2]
[352234225,1739013054494,-1019.72,0.00011134,2]
[352234226,1739013054504,-500.0,0.00011134,2]
[352234227,1739013054514,-151.0,0.00011134,2]
[352234228,1739013054524,-500.0,0.00011134,2]
[352234229,1739013054534,-705.84,0.00011134,2]
[352234230,1739013054544,-500.0,0.00011134,2]
[352234231,1739013054554,-2537.39,0.00011134,2]
[352234232,1739013054564,-500.0,0.00011134,2]
[352234233,1739013054574,-500.0,0.00011134,2]
[352234234,1739013054583,-500.0,0.00011134,2]
[352234235,1739013054593,-716.34,0.00011134,2]
[352234236,1739013054602,-500.0,0.00011134,2]
[352234237,1739013054612,-385.09852718,0.00011134,2]
[352234238,1739013054621,-500.0,0.00011134,2]
[352234239,1739013054630,-500.0,0.00011134,2]
[352234240,1739013054641,-500.0,0.00011134,2]
[352234241,1739013054650,-936.48,0.00011134,2]
[352234242,1739013054660,-500.0,0.00011134,2]
[352234243,1739013054669,-500.0,0.00011134,2]
[352234244,1739013054678,-1011.69,0.00011134,2]
[352234245,1739013054688,-490.89016874,0.00011134,2]
[352234246,1739013054697,-500.0,0.00011134,2]
[352234247,1739013054707,-500.0,0.00011134,2]
[352234248,1739013054716,-874.09,0.00011134,2]
[352234249,1739013054726,-239.34096021,0.00011134,2]
[352234250,1739013054735,-500.0,0.00011134,2]
[352234251,1739013054744,-305.76138735,0.00011134,2]
[352234252,1739013054754,-512.51507839,0.00011134,2]
[352234253,1739013054763,-500.0,0.00011134,2]
[352234254,1739013054773,-498.41488839,0.00011134,2]
[352234255,1739013054782,-726.83,0.00011134,2]
[352234256,1739013054792,-500.0,0.00011134,2]
[352234257,1739013054801,-500.0,0.00011134,2]
[352234258,1739013054810,-500.0,0.00011134,2]
[352234259,1739013054820,-500.0,0.00011134,2]
[352234260,1739013054829,-500.0,0.00011134,2]
[352234261,1739013054839,-500.0,0.00011134,2]
[352234262,1739013054849,-500.0,0.00011134,2]
[352234263,1739013054859,-500.0,0.00011134,2]
[352234264,1739013054868,-500.0,0.00011134,2]
[352234265,1739013054878,-1536.23,0.00011134,2]
[352234266,1739013054888,-505.38539685,0.00011134,2]
[352234267,1739013054898,-500.0,0.00011134,2]
[352234268,1739013054908,-500.0,0.00011134,2]
[352234269,1739013054917,-773.18,0.00011134,2]
[352234270,1739013054927,-497.40472586,0.00011134,2]
[352234271,1739013054936,-500.0,0.00011134,2]
[352234272,1739013054946,-500.0,0.00011134,2]
[352234273,1739013054956,-500.58355237,0.00011134,2]
[352234274,1739013054965,-611.63,0.00011134,2]
[352234275,1739013054974,-532.87,0.00011134,2]
[352234276,1739013054983,-500.0,0.00011134,2]
[352234277,1739013054993,-500.0,0.00011134,2]
[352234278,1739013055003,-500.0,0.00011134,2]
[352234279,1739013055012,-708.91,0.00011134,2]
[352234280,1739013055022,-500.0,0.00011134,2]
[352234281,1739013055031,-500.0,0.00011134,2]
[352234282,1739013055041,-500.0,0.00011134,2]
[352234283,1739013055050,-505.38412261,0.00011134,2]
[352234284,1739013055059,-2071.14,0.00011134,2]
[352234285,1739013055069,-500.0,0.00011134,2]
[352234286,1739013055078,-500.0,0.00011134,2]
[352234287,1739013055088,-353.45149554,0.00011134,2]
[352234288,1739013055097,-818.79,0.00011134,2]
[352234289,1739013055107,-566.43192507,0.00011134,2]
[352234290,1739013055116,-500.0,0.00011134,2]
[352234291,1739013055125,-500.0,0.00011134,2]
[352234292,1739013055135,-981.65,0.00011134,2]
[352234293,1739013055145,-500.0,0.00011134,2]
[352234294,1739013055155,-500.0,0.00011134,2]
[352234295,1739013055164,-500.0,0.00011134,2]
[352234296,1739013055173,-500.0,0.00011134,2]
[352234297,1739013055182,-500.0,0.00011134,2]
[352234298,1739013055192,-947.55,0.00011134,2]
[352234299,1739013055201,-503.75868622,0.00011134,2]
[352234300,1739013055211,-207.37597513,0.00011134,2]
[352234301,1739013055220,-500.0,0.00011134,2]
[352234302,1739013055229,-501.50071033,0.00011134,2]
[352234303,1739013055239,-500.0,0.00011134,2]
[352234304,1739013055249,-500.0,0.00011134,2]
[352234305,1739013055260,-2250.99,0.00011134,2]
[352234306,1739013055269,-500.0,0.00011134,2]
[352234307,1739013055279,-500.0,0.00011134,2]
[352234308,1739013055289,-500.0,0.00011134,2]
[352234309,1739013055299,-500.0,0.00011134,2]
[352234310,1739013055308,-500.0,0.00011134,2]
[352234311,1739013055318,-500.0,0.00011134,2]
[352234312,1739013055327,-151.0,0.00011134,2]
[352234313,1739013055337,-511.89575881,0.00011134,2]
[352234314,1739013055349,-501.90165063,0.00011134,2]
[352234315,1739013055359,-500.0,0.00011134,2]
[352234316,1739013055368,-500.0,0.00011134,2]
[352234317,1739013055378,-530.00362308,0.00011134,2]
[352234318,1739013055387,-500.0,0.00011134,2]
[352234319,1739013055397,-500.0,0.00011134,2]
[352234320,1739013055407,-500.0,0.00011134,2]
[352234321,1739013055416,-500.0,0.00011134,2]
[352234322,1739013055426,-500.0,0.00011134,2]
[352234323,1739013055436,-500.0,0.00011134,2]
[352234324,1739013055446,-533.688701,0.00011134,2]
[352234325,1739013055456,-500.0,0.00011134,2]
[352234326,1739013055465,-500.0,0.00011134,2]
[352234327,1739013055475,-500.0,0.00011134,2]
[352234328,1739013055484,-500.0,0.00011134,2]
[352234329,1739013055493,-500.0,0.00011134,2]
[352234330,1739013055503,-500.0,0.00011134,2]
[352234331,1739013055513,-559.06,0.00011134,2]
[352234332,1739013055524,-514.45,0.00011134,2]
[352234333,1739013055534,-500.0,0.00011134,2]
[352234334,1739013055543,-500.0,0.00011134,2]
[352234335,1739013055553,-500.0,0.00011134,2]
[352234336,1739013055562,-854.4,0.00011134,2]
[352234337,1739013055572,-500.0,0.00011134,2]
[352234338,1739013055581,-500.0,0.00011134,2]
[352234339,1739013055590,-312.94883075,0.00011134,2]
[352234340,1739013055600,-500.0,0.00011134,2]
[352234341,1739013055609,-500.0,0.00011134,2]
[352234342,1739013055619,-500.0,0.00011134,2]
[352234343,1739013055629,-500.0,0.00011134,2]
[352234344,1739013055639,-500.0,0.00011134,2]
[352234345,1739013055649,-513.19,0.00011134,2]
[352234346,1739013055659,-500.0,0.00011134,2]
[352234347,1739013055668,-1032.34,0.00011134,2]
[352234348,1739013055678,-500.0,0.00011134,2]
[352234349,1739013055687,-503.04787737,0.00011134,2]
[352234350,1739013055697,-500.0,0.00011134,2]
[352234351,1739013055707,-500.0,0.00011134,2]
[352234352,1739013055716,-500.0,0.00011134,2]
[352234353,1739013055725,-500.0,0.00011134,2]
[352234354,1739013055735,-500.0,0.00011134,2]
[352234355,1739013055744,-500.0,0.00011134,2]
[352234356,1739013055754,-500.0,0.00011134,2]
[352234357,1739013055763,-500.0,0.00011134,2]
[352234358,1739013055773,-500.0,0.00011134,2]
[352234359,1739013055783,-1046.28,0.00011134,2]
[352234360,1739013055792,-2383.11,0.00011134,2]
[352234361,1739013055802,-626.31,0.00011134,2]
[352234362,1739013055812,-500.0,0.00011134,2]
[352234363,1739013055821,-500.0,0.00011134,2]
[352234364,1739013055830,-500.0,0.00011134,2]
[352234365,1739013055841,-614.14,0.00011134,2]
[352234366,1739013055857,-330.20924497,0.00011134,2]
[352234367,1739013055868,-966.17,0.00011134,2]
[352234368,1739013055877,-500.0,0.00011134,2]
[352234369,1739013055886,-500.0,0.00011134,2]
[352234370,1739013055896,-1038.87,0.00011134,2]
[352234371,1739013055906,-500.0,0.00011134,2]
[352234372,1739013055915,-500.0,0.00011134,2]
[352234373,1739013055924,-500.0,0.00011134,2]
[352234374,1739013055934,-500.0,0.00011134,2]
[352234375,1739013055943,-495.60509145,0.00011134,2]
[352234376,1739013055952,-500.0,0.00011134,2]
[352234377,1739013055962,-1106.05,0.00011134,2]
[352234378,1739013055971,-500.0,0.00011134,2]
[352234379,1739013055981,-500.0,0.00011134,2]
[352234380,1739013055990,-500.0,0.00011134,2]
[352234381,1739013055999,-500.0,0.00011134,2]
[352234382,1739013056010,-500.0,0.00011134,2]
[352234383,1739013056019,-500.0,0.00011134,2]
[352234384,1739013056028,-500.0,0.00011134,2]
[352234385,1739013056037,-501.01493279,0.00011134,2]
[352234386,1739013056047,-2015.73,0.00011134,2]
[352234387,1739013056056,-500.0,0.00011134,2]
[352234388,1739013056066,-500.0,0.00011134,2]
[352234389,1739013056077,-500.0,0.00011134,2]
[352234390,1739013056087,-500.0,0.00011134,2]
[352234391,1739013056097,-1931.33,0.00011134,2]
[352234392,1739013056107,-500.0,0.00011134,2]
[352234393,1739013056117,-500.0,0.00011134,2]
[352234394,1739013056126,-500.0,0.00011134,2]
[352234395,1739013056136,-500.0,0.00011134,2]
[352234396,1739013056146,-500.0,0.00011134,2]
[352234397,1739013056156,-559.49,0.00011134,2]
[352234398,1739013056165,-500.0,0.00011134,2]
[352234399,1739013056175,-500.0,0.00011134,2]
[352234400,1739013056185,-503.23254815,0.00011134,2]
[352234401,1739013056194,-500.0,0.00011134,2]
[352234402,1739013056204,-500.0,0.00011134,2]
[352234403,1739013056214,-1077.31,0.00011134,2]
[352234404,1739013056223,-500.0,0.00011134,2]
[352234405,1739013056232,-500.0,0.00011134,2]
[352234406,1739013056242,-500.0,0.00011134,2]
[352234407,1739013056251,-500.0,0.00011134,2]
[352234408,1739013056261,-500.0,0.00011134,2]
[352234409,1739013056271,-500.0,0.00011134,2]
[352234410,1739013056281,-500.0,0.00011134,2]
[352234411,1739013056290,-932.69,0.00011134,2]
[352234412,1739013056300,-2072.47,0.00011134,2]
[352234413,1739013056309,-2541.69,0.00011134,2]
[352234414,1739013056319,-501.92,0.00011134,2]
[352234415,1739013056329,-500.0,0.00011134,2]
[352234416,1739013056338,-500.0,0.00011134,2]
[352234417,1739013056558,-500.0,0.00011134,2]
[352234418,1739013056568,-721.58,0.00011134,2]
[352234419,1739013056578,-761.18,0.00011134,2]
[352234420,1739013056587,-500.0,0.00011134,2]
[352234421,1739013056596,-500.0,0.00011134,2]
[352234422,1739013056605,-500.0,0.00011134,2]
[352234423,1739013056614,-460.78487989,0.00011134,2]
[352234424,1739013056623,-500.0,0.00011134,2]
[352234425,1739013056633,-1724.83,0.00011134,2]
[352234426,1739013056642,-500.0,0.00011134,2]
[352234427,1739013056652,-2030.46,0.00011134,2]
[352234428,1739013056661,-500.0,0.00011134,2]
[352234429,1739013056670,-902.21,0.00011134,2]
[352234430,1739013056679,-500.0,0.00011134,2]
[352234431,1739013056688,-500.0,0.00011134,2]
[352234432,1739013056697,-2636.15,0.00011134,2]
[352234433,1739013056706,-2002.7,0.00011134,2]
[352234434,1739013056716,-500.0,0.00011134,2]
[352234435,1739013056725,-500.0,0.00011134,2]
[352234436,1739013056735,-500.0,0.00011134,2]
[352234437,1739013056744,-500.0,0.00011134,2]
[352234438,1739013056753,-705.09,0.00011134,2]
[352234439,1739013056763,-500.0,0.00011134,2]
[352234440,1739013056772,-500.0,0.00011134,2]
[352234441,1739013056781,-500.0,0.00011134,2]
[352234442,1739013056790,-500.0,0.00011134,2]
[352234443,1739013056799,-2090.85,0.00011134,2]
[352234444,1739013056808,-1600.49,0.00011134,2]
[352234445,1739013056818,-1065.95,0.00011134,2]
[352234446,1739013056827,-2402.98,0.00011134,2]
[352234447,1739013056836,-450.36186393,0.00011134,2]
[352234448,1739013056845,-2859.61,0.00011134,2]
[352234449,1739013056854,-500.0,0.00011134,2]
[352234450,1739013056864,-500.0,0.00011134,2]
[352234451,1739013056873,-500.0,0.00011134,2]
[352234452,1739013056882,-500.0,0.00011134,2]
[352234453,1739013056891,-500.0,0.00011134,2]
[352234454,1739013056901,-2754.41,0.00011134,2]
[352234455,1739013056910,-661.96,0.00011134,2]
[352234456,1739013056919,-661.96,0.00011134,2]
[352234457,1739013056929,-661.96,0.00011134,2]
[352234458,1739013056938,-661.96,0.00011134,2]
[352234459,1739013056948,-661.97693518,0.00011134,2]
[352234460,1739013056958,-879.4,0.00011134,2]
[352234461,1739013056967,-2692.97,0.00011134,2]
[352234462,1739013056976,-500.0,0.00011134,2]
[352234463,1739013056985,-3004.1,0.00011134,2]
[352234464,1739013056995,-5148.76,0.00011134,2]
[352234465,1739013057004,-500.0,0.00011134,2]
[352234466,1739013057014,-500.0,0.00011134,2]
[352234467,1739013057023,-1559.38,0.00011134,2]
[352234468,1739013057033,-500.0,0.00011134,2]
[352234469,1739013057043,-500.0,0.00011134,2]
[352234470,1739013057052,-500.0,0.00011134,2]
[352234471,1739013057062,-2843.08,0.00011134,2]
[352234472,1739013057071,-500.0,0.00011134,2]
[352234473,1739013057081,-1375.24,0.00011134,2]
[352234474,1739013057091,-2268.82,0.00011134,2]
[352234475,1739013057100,-500.0,0.00011134,2]
[352234476,1739013057110,-5022.25,0.00011134,2]
[352234477,1739013057119,-500.0,0.00011134,2]
[352234478,1739013057128,-711.21,0.00011134,2]
[352234479,1739013057138,-500.0,0.00011134,2]
[352234480,1739013057147,-1670.67,0.00011134,2]
[352234481,1739013057156,-500.0,0.00011134,2]
[352234482,1739013057166,-500.0,0.00011134,2]
[352234483,1739013057175,-15081.68,0.00011134,2]
[352234484,1739013057184,-1399.36,0.00011134,2]
[352234485,1739013057194,-1387.07,0.00011134,2]
[352234486,1739013057203,-500.0,0.00011134,2]
[352234487,1739013057213,-500.0,0.00011134,2]
[352234488,1739013057223,-6334.51,0.00011134,2]
[352234489,1739013057232,-567.59,0.00011134,2]
[352234490,1739013057242,-500.0,0.00011134,2]
[352234491,1739013057251,-545.26,0.00011134,2]
[352234492,1739013057262,-500.0,0.00011134,2]
[352234493,1739013057272,-500.0,0.00011134,2]
[352234494,1739013057282,-2225.81,0.00011134,2]
[352234495,1739013057292,-3509.06,0.00011134,2]
[352234496,1739013057302,-502.75536212,0.00011134,2]
[352234497,1739013057312,-2285.19,0.00011134,2]
[352234498,1739013057321,-500.0,0.00011134,2]
[352234499,1739013057331,-5176.3,0.00011134,2]
[352234500,1739013057341,-500.78943341,0.00011134,2]
[352234501,1739013057356,-500.0,0.00011134,2]
[352234502,1739013057366,-500.0,0.00011134,2]
[352234503,1739013057375,-679.18,0.00011134,2]
[352234504,1739013057384,-500.0,0.00011134,2]
[352234505,1739013057394,-2222.63,0.00011134,2]
[352234506,1739013057404,-500.0,0.00011134,2]
[352234507,1739013057413,-1424.54,0.00011134,2]
[352234508,1739013057425,-1080.31,0.00011134,2]
[352234509,1739013057435,-500.0,0.00011134,2]
[352234510,1739013057445,-500.0,0.00011134,2]
[352234511,1739013057455,-508.36296043,0.00011134,2]
[352234512,1739013057465,-500.0,0.00011134,2]
[352234513,1739013057474,-3915.69,0.00011134,2]
[352234514,1739013057484,-1682.01,0.00011134,2]
[352234515,1739013057494,-502.21990274,0.00011134,2]
[352234516,1739013057503,-500.0,0.00011134,2]
[352234517,1739013057514,-246.32387835,0.00011134,2]
[352234518,1739013057523,-500.0,0.00011134,2]
[352234519,1739013057533,-514.78806697,0.00011134,2]
[352234520,1739013057542,-2047.9,0.00011134,2]
[352234521,1739013057552,-1485.93,0.00011134,2]
[352234522,1739013057562,-6299.13,0.00011134,2]
[352234523,1739013057572,-500.0,0.00011134,2]
[352234524,1739013057581,-3481.83,0.00011134,2]
[352234525,1739013057591,-500.0,0.00011134,2]
[352234526,1739013057600,-511.40793671,0.00011134,2]
[352234527,1739013057610,-4781.03,0.00011134,2]
[352234528,1739013057620,-500.0,0.00011134,2]
[352234529,1739013057629,-500.0,0.00011134,2]
[352234530,1739013057639,-862.73,0.00011134,2]
[352234531,1739013057649,-500.0,0.00011134,2]
[352234532,1739013057658,-500.0,0.00011134,2]
[352234533,1739013057668,-883.74,0.00011134,2]
[352234534,1739013057678,-875.14,0.00011134,2]
[352234535,1739013057688,-500.0,0.00011134,2]
[352234536,1739013057697,-500.0,0.00011134,2]
[352234537,1739013057706,-743.76,0.00011134,2]